fUST/lending_fUST_20250928
["ID","MTS","AMOUNT","RATE_DAILY","PERIOD"]
[388057309,1758995441115,-643.12,0.00035616,9]
[388057310,1758995441124,-480.0,0.00035616,9]
[388057311,1758995441134,-615.72,0.00035616,9]
[388057312,1758995441144,-480.0,0.00035616,9]
[388057313,1758995441153,-489.29,0.00035616,9]
[388057314,1758995441163,-480.0,0.00035616,9]
[388057315,1758995441172,-500.0,0.00035616,9]
[388057316,1758995441181,-480.0,0.00035616,9]
[388057317,1758995441191,-480.0,0.00035616,9]
[388057318,1758995441200,-1378.23,0.00035616,9]
[388057319,1758995441210,-623.29831451,0.00035616,9]
[388057320,1758995441220,-582.54,0.00035616,9]
[388057321,1758995441229,-1114.64,0.00035616,9]
[388057322,1758995441238,-743.49,0.00035616,9]
[388057323,1758995441247,-480.0,0.00035616,9]
[388057324,1758995441257,-1785.82,0.00035616,9]
[388057325,1758995441266,-406.65813282,0.00035616,9]
[388057326,1758995441277,-480.0,0.00035616,9]
[388057327,1758995441288,-769.23,0.00035616,9]
[388057328,1758995441297,-480.0,0.00035616,9]
[388057329,1758995441307,-480.0,0.00035616,9]
[388057330,1758995441316,-480.0,0.00035616,9]
[388057331,1758995441326,-480.0,0.00035616,9]
[388057332,1758995441335,-518.01267602,0.00035616,9]
[388057333,1758995441345,-480.0,0.00035616,9]
[388057334,1758995441358,-480.0,0.00035616,9]
[388057335,1758995441368,-480.0,0.00035616,9]
[388057336,1758995441377,-480.0,0.00035616,9]
[388057337,1758995441387,-633.21,0.00035616,9]
[388057338,1758995441396,-480.0,0.00035616,9]
[388057339,1758995441406,-480.0,0.00035616,9]
[388057340,1758995441415,-2079.8,0.00035616,9]
[388057341,1758995441425,-480.0,0.00035616,9]
[388057342,1758995441435,-480.0,0.00035616,9]
[388057343,1758995441445,-480.0,0.00035616,9]
[388057344,1758995441455,-480.0,0.00035616,9]
[388057345,1758995441464,-1181.69,0.00035616,9]
[388057346,1758995441473,-364.04746189,0.00035616,9]
[388057347,1758995441483,-1577.18,0.00035616,9]
[388057348,1758995441492,-1114.79,0.00035616,9]
[388057349,1758995441502,-4229.2,0.00035616,9]
[388057350,1758995441511,-480.0,0.00035616,9]
[388057351,1758995441521,-480.0,0.00035616,9]
[388057352,1758995441530,-480.0,0.00035616,9]
[388057353,1758995441539,-480.0,0.00035616,9]
[388057354,1758995441549,-820.54,0.00035616,9]
[388057355,1758995441558,-480.0,0.00035616,9]
[388057356,1758995441567,-480.0,0.00035616,9]
[388057357,1758995441576,-2417.87,0.00035616,9]
[388057358,1758995441586,-480.0,0.00035616,9]
[388057359,1758995441595,-957.02,0.00035616,9]
[388057360,1758995441605,-1757.6,0.00035616,9]
[388057361,1758995441615,-480.0,0.00035616,9]
[388057362,1758995441625,-480.0,0.00035616,9]
[388057363,1758995441634,-480.0,0.00035616,9]
[388057364,1758995441644,-480.0,0.00035616,9]
[388057365,1758995441653,-1156.57,0.00035616,9]
[388057366,1758995441663,-480.0,0.00035616,9]
[388057367,1758995441672,-1118.97,0.00035616,9]
[388057368,1758995441682,-365.077696,0.00035616,9]
[388057369,1758995441692,-480.0,0.00035616,9]
[388057370,1758995441701,-480.0,0.00035616,9]
[388057371,1758995441711,-480.0,0.00035616,9]
[388057372,1758995441720,-1267.95,0.00035616,9]
[388057373,1758995441730,-480.82275623,0.00035616,9]
[388057374,1758995441786,-480.0,0.00035616,9]
[388057375,1758995441796,-480.0,0.00035616,9]
[388057376,1758995441805,-953.17,0.00035616,9]
[388057377,1758995441816,-583.67,0.00035616,9]
[388057378,1758995441826,-480.0,0.00035616,9]
[388057379,1758995441835,-480.0,0.00035616,9]
[388057380,1758995441844,-480.0,0.00035616,9]
[388057381,1758995441855,-609.34,0.00035616,9]
[388057382,1758995441864,-490.0066787,0.00035616,9]
[388057383,1758995441873,-831.41,0.00035616,9]
[388057384,1758995441881,-480.0,0.00035616,9]
[388057385,1758995441891,-557.54,0.00035616,9]
[388057386,1758995441901,-480.0,0.00035616,9]
[388057387,1758995441912,-480.0,0.00035616,9]
[388057388,1758995441921,-644.94,0.00035616,9]
[388057389,1758995441931,-543.19,0.00035616,9]
[388057390,1758995441941,-480.0,0.00035616,9]
[388057391,1758995441950,-480.0,0.00035616,9]
[388057392,1758995441959,-480.0,0.00035616,9]
[388057393,1758995441968,-480.0,0.00035616,9]
[388057394,1758995441979,-629.22,0.00035616,9]
[388057395,1758995441989,-480.0,0.00035616,9]
[388057396,1758995441998,-480.0,0.00035616,9]
[388057397,1758995442008,-480.0,0.00035616,9]
[388057398,1758995442018,-480.0,0.00035616,9]
[388057399,1758995442027,-413.11303403,0.00035616,9]
[388057400,1758995442036,-865.62,0.00035616,9]
[388057401,1758995442046,-480.0,0.00035616,9]
[388057402,1758995442055,-480.0,0.00035616,9]
[388057403,1758995442065,-480.0,0.00035616,9]
[388057404,1758995442074,-480.0,0.00035616,9]
[388057405,1758995442083,-480.0,0.00035616,9]
[388057406,1758995442093,-480.0,0.00035616,9]
[388057407,1758995442102,-519.13845228,0.00035616,9]
[388057408,1758995442112,-659.04,0.00035616,9]
[388057409,1758995442121,-997.54,0.00035616,9]
[388057410,1758995442131,-480.0,0.00035616,9]
[388057411,1758995442140,-482.83,0.00035616,9]
[388057412,1758995442150,-480.0,0.00035616,9]
[388057413,1758995442160,-537.87,0.00035616,9]
[388057414,1758995442169,-480.0,0.00035616,9]
[388057415,1758995442178,-616.73,0.00035616,9]
[388057416,1758995442187,-480.0,0.00035616,9]
[388057417,1758995442197,-481.82599882,0.00035616,9]
[388057418,1758995442207,-480.0,0.00035616,9]
[388057419,1758995442216,-480.0,0.00035616,9]
[388057420,1758995442226,-6597.62,0.00035616,9]
[388057421,1758995442237,-480.0,0.00035616,9]
[388057422,1758995442246,-480.0,0.00035616,9]
[388057423,1758995442255,-480.0,0.00035616,9]
[388057424,1758995442265,-480.0,0.00035616,9]
[388057425,1758995442274,-4632.79,0.00035616,9]
[388057426,1758995442283,-480.0,0.00035616,9]
[388057427,1758995442292,-480.0,0.00035616,9]
[388057428,1758995442301,-480.0,0.00035616,9]
[388057429,1758995442310,-480.0,0.00035616,9]
[388057430,1758995442319,-500.0,0.00035616,30]
[388057431,1758995442328,-863.55,0.00035616,9]
[388057432,1758995442337,-480.0,0.00035616,9]
[388057433,1758995442347,-480.0,0.00035616,9]
[388057434,1758995442356,-480.0,0.00035616,9]
[388057435,1758995442366,-480.0,0.00035616,9]
[388057436,1758995442375,-1110.33,0.00035616,9]
[388057437,1758995442384,-649.46,0.00035616,9]
[388057438,1758995442394,-480.0,0.00035616,9]
[388057439,1758995442404,-480.0,0.00035616,9]
[388057440,1758995442414,-348.14827092,0.00035616,9]
[388057441,1758995442423,-480.0,0.00035616,9]
[388057442,1758995442434,-480.0,0.00035616,9]
[388057443,1758995442443,-480.0,0.00035616,9]
[388057444,1758995442452,-513.14,0.00035616,9]
[388057445,1758995442461,-1195.18,0.00035616,9]
[388057446,1758995442470,-1228.83,0.00035616,9]
[388057447,1758995442479,-811.94,0.00035616,9]
[388057448,1758995442489,-811.94,0.00035616,9]
[388057449,1758995442499,-811.94,0.00035616,9]
[388057450,1758995442508,-480.0,0.00035616,9]
[388057451,1758995442518,-811.94,0.00035616,9]
[388057452,1758995442528,-480.0,0.00035616,9]
[388057453,1758995442538,-811.94,0.00035616,9]
[388057454,1758995442547,-811.94,0.00035616,9]
[388057455,1758995442557,-811.94,0.00035616,9]
[388057456,1758995442566,-811.94,0.00035616,9]
[388057458,1758995442575,-811.94,0.00035616,9]
[388057459,1758995442585,-811.94,0.00035616,9]
[388057461,1758995442595,-480.0,0.00035616,9]
[388057463,1758995442605,-811.94,0.00035616,9]
[388057464,1758995442614,-811.94,0.00035616,9]
[388057465,1758995442624,-811.94,0.00035616,9]
[388057466,1758995442634,-811.94,0.00035616,9]
[388057467,1758995442645,-811.94,0.00035616,9]
[388057468,1758995442655,-811.94,0.00035616,9]
[388057469,1758995442665,-811.94,0.00035616,9]
[388057470,1758995442674,-811.94,0.00035616,9]
[388057471,1758995442684,-811.94,0.00035616,9]
[388057472,1758995442693,-811.94,0.00035616,9]
[388057473,1758995442702,-811.94,0.00035616,9]
[388057474,1758995442712,-811.94,0.00035616,9]
[388057475,1758995442721,-811.94,0.00035616,9]
[388057476,1758995442730,-812.15932574,0.00035616,9]
[388057477,1758995442739,-480.0,0.00035616,9]
[388057478,1758995442749,-480.0,0.00035616,9]
[388057479,1758995442758,-718.44,0.00035616,9]
[388057480,1758995442768,-480.0,0.00035616,9]
[388057481,1758995442778,-480.0,0.00035616,9]
[388057482,1758995442787,-480.0,0.00035616,9]
[388057483,1758995442796,-480.0,0.00035616,9]
[388057484,1758995442805,-480.0,0.00035616,9]
[388057485,1758995442815,-4011.71,0.00035616,9]
[388057486,1758995442824,-480.0,0.00035616,9]
[388057487,1758995442834,-480.0,0.00035616,9]
[388057488,1758995442843,-823.36,0.00035616,9]
[388057489,1758995442853,-958.85,0.00035616,9]
[388057490,1758995442863,-523.61,0.00035616,9]
[388057491,1758995442872,-480.0,0.00035616,9]
[388057493,1758995442881,-1461.34,0.00035616,9]
[388057494,1758995442892,-480.0,0.00035616,9]
[388057495,1758995442901,-2654.95,0.00035616,9]
[388057496,1758995442910,-1710.24,0.00035616,9]
[388057497,1758995442919,-2145.15,0.00035616,9]
[388057498,1758995442929,-153.69532567,0.00035616,9]
[388057499,1758995442939,-954.58,0.00035616,9]
[388057500,1758995442948,-480.0,0.00035616,9]
[388057501,1758995442957,-480.0,0.00035616,9]
[388057502,1758995442967,-480.0,0.00035616,9]
[388057503,1758995442976,-480.0,0.00035616,9]
[388057504,1758995442986,-480.0,0.00035616,9]
[388057505,1758995442995,-480.0,0.00035616,9]
[388057507,1758995443004,-1060.11,0.00035616,9]
[388057508,1758995443014,-480.0,0.00035616,9]
[388057509,1758995443023,-480.0,0.00035616,9]
[388057510,1758995443032,-494.48261383,0.00035616,9]
[388057511,1758995443042,-900.97,0.00035616,9]
[388057512,1758995443051,-3694.23,0.00035616,9]
[388057513,1758995443063,-293.01128128,0.00035616,9]
[388057514,1758995443072,-480.0,0.00035616,9]
[388057515,1758995443081,-480.0,0.00035616,9]
[388057516,1758995443090,-480.0,0.00035616,9]
[388057517,1758995443099,-500.0,0.00035616,9]
[388057518,1758995443108,-500.0,0.00035616,9]
[388057519,1758995443116,-500.0,0.00035616,9]
[388057520,1758995443125,-500.0,0.00035616,9]
[388057521,1758995443134,-2130.02,0.00035616,9]
[388057522,1758995443143,-1011.53,0.00035616,9]
[388057523,1758995443151,-500.0,0.00035616,9]
[388057524,1758995443160,-500.0,0.00035616,9]
[388057525,1758995443169,-500.0,0.00035616,9]
[388057526,1758995443178,-500.0,0.00035616,9]
[388057527,1758995443187,-500.0,0.00035616,9]
[388057528,1758995443195,-500.0,0.00035616,9]
[388057529,1758995443204,-500.0,0.00035616,9]
[388057530,1758995443214,-500.0,0.00035616,9]
[388057531,1758995443223,-500.0,0.00035616,9]
[388057532,1758995443231,-480.0,0.00035616,9]
[388057533,1758995443240,-500.0,0.00035616,9]
[388057534,1758995443249,-480.0,0.00035616,9]
[388057535,1758995443258,-500.0,0.00035616,9]
[388057536,1758995443266,-480.0,0.00035616,9]
[388057537,1758995443275,-500.0,0.00035616,9]
[388057538,1758995443287,-500.0,0.00035616,9]
[388057539,1758995443295,-500.0,0.00035616,9]
[388057540,1758995443304,-500.0,0.00035616,9]
[388057541,1758995443312,-480.0,0.00035616,9]
[388057542,1758995443322,-500.0,0.00035616,9]
[388057543,1758995443331,-1416.69,0.00035616,9]
[388057544,1758995443340,-500.0,0.00035616,9]
[388057545,1758995443349,-500.0,0.00035616,9]
[388057546,1758995443358,-500.0,0.00035616,9]
[388057547,1758995443367,-480.0,0.00035616,9]
[388057548,1758995443376,-360.95047004,0.00035616,9]
[388057550,1758995443384,-480.0,0.00035616,9]
[388057551,1758995443394,-480.0,0.00035616,7]
[388057553,1758995443403,-472.11652225,0.00035616,9]
[388057554,1758995443413,-480.0,0.00035616,9]
[388057555,1758995443422,-480.0,0.00035616,9]
[388057557,1758995443432,-606.72,0.00035616,9]
[388057559,1758995443441,-480.0,0.00035616,9]
[388057560,1758995443449,-2817.0,0.00035616,9]
[388057562,1758995443459,-8143.88,0.00035616,9]
[388057563,1758995443468,-480.0,0.00035616,9]
[388057564,1758995443477,-1617.4,0.00035616,9]
[388057565,1758995443487,-8165.94,0.00035616,9]
[388057567,1758995443496,-480.0,0.00035616,9]
[388057569,1758995443505,-4985.04,0.00035616,9]
[388057571,1758995443515,-480.0,0.00035616,9]
[388057573,1758995443524,-534.37,0.00035616,9]
[388057574,1758995443533,-464.32349092,0.00035616,9]
[388057576,1758995443752,-15.67650908,0.00035616,9]
[388057577,1758995443762,-480.0,0.00035616,9]
[388057578,1758995443771,-378.86683306,0.00035616,9]
[388057580,1758995443996,-468.99316694,0.00035616,9]
[388057581,1758995444006,-2420.07,0.00035616,9]
[388057582,1758995444016,-480.0,0.00035616,9]
[388057583,1758995444025,-480.0,0.00035616,9]
[388057584,1758995444034,-799.94,0.00035616,9]
[388057585,1758995444044,-480.0,0.00035616,9]
[388057586,1758995444053,-2636.6,0.00035616,9]
[388057587,1758995444062,-480.0,0.00035616,9]
[388057588,1758995444071,-480.0,0.00035616,9]
[388057589,1758995444081,-500.0,0.00035616,9]
[388057590,1758995444090,-480.0,0.00035616,9]
[388057591,1758995444099,-4059.07,0.00035616,9]
[388057592,1758995444109,-710.13,0.00035616,9]
[388057593,1758995444118,-480.0,0.00035616,9]
[388057594,1758995444127,-480.0,0.00035616,9]
[388057595,1758995444137,-480.0,0.00035616,9]
[388057596,1758995444147,-480.0,0.00035616,9]
[388057597,1758995444156,-480.0,0.00035616,9]
[388057598,1758995444166,-480.0,0.00035616,9]
[388057599,1758995444175,-480.0,0.00035616,9]
[388057600,1758995444184,-480.0,0.00035616,9]
[388057601,1758995444194,-480.0,0.00035616,9]
[388057602,1758995444204,-480.0,0.00035616,9]
[388057603,1758995444212,-2226.58,0.00035616,9]
[388057604,1758995444222,-480.0,0.00035616,9]
[388057605,1758995444231,-480.0,0.00035616,9]
[388057606,1758995444240,-377.96671221,0.00035616,9]
[388057607,1758995444252,-102.03328779,0.00035616,9]
[388057608,1758995444262,-4841.02,0.00035616,3]
[388057609,1758995444271,-631.01,0.00035616,9]
[388057610,1758995444281,-930.03,0.00035616,9]
[388057611,1758995444290,-289.84191586,0.00035616,9]
[388057612,1758995444300,-140.68586046,0.00035616,9]
[388057613,1758995444312,-1498.16413954,0.00035616,9]
[388057614,1758995444321,-480.0,0.00035616,9]
[388057615,1758995444330,-833.48,0.00035616,9]
[388057616,1758995444339,-113.08733746,0.00035616,9]
[388057617,1758995444351,-366.91266254,0.00035616,9]
[388057618,1758995444361,-375.7542265,0.00035616,9]
[388057619,1758995444375,-104.2457735,0.00035616,9]
[388057620,1758995444385,-770.39,0.00035616,9]
[388057621,1758995444395,-480.0,0.00035616,9]
[388057622,1758995444408,-480.0,0.00035616,9]
[388057623,1758995444417,-480.0,0.00035616,9]
[388057624,1758995444427,-683.72084225,0.00035616,9]
[388057625,1758995444447,-144.45915775,0.00035616,9]
[388057626,1758995444456,-480.0,0.00035616,9]
[388057627,1758995444466,-480.0,0.00035616,9]
[388057628,1758995444476,-318.1979367,0.00035616,9]
[388057629,1758995444703,-161.8020633,0.00035616,9]
[388057630,1758995444715,-571.49,0.00035616,9]
[388057631,1758995444724,-597.08658096,0.00035616,9]
[388057632,1758995444734,-480.0,0.00035616,9]
[388057633,1758995444743,-3021.12,0.00035616,9]
[388057634,1758995444753,-480.0,0.00035616,9]
[388057635,1758995444762,-559.50135575,0.00035616,9]
[388057636,1758995444774,-181.64864425,0.00035616,9]
[388057637,1758995444783,-9175.14,0.00035616,9]
[388057638,1758995444793,-3571.23,0.00035616,9]
[388057639,1758995444803,-1756.14375949,0.00035616,9]
[388057640,1758995444822,-429.25624051,0.00035616,9]
[388057641,1758995444833,-756.18,0.00035616,9]
[388057642,1758995444842,-480.0,0.00035616,9]
[388057643,1758995444852,-480.0,0.00035616,9]
[388057644,1758995444861,-480.0,0.00035616,9]
[388057645,1758995444871,-480.0,0.00035616,9]
[388057646,1758995444881,-515.82,0.00035616,9]
[388057647,1758995444891,-480.0,0.00035616,9]
[388057648,1758995444901,-480.0,0.00035616,9]
[388057649,1758995444911,-480.0,0.00035616,9]
[388057650,1758995444921,-4933.9,0.00035616,9]
[388057651,1758995444931,-480.0,0.00035616,9]
[388057652,1758995444940,-480.0,0.00035616,9]
[388057653,1758995444950,-480.0,0.00035616,9]
[388057654,1758995444960,-553.88,0.00035616,9]
[388057655,1758995444969,-480.0,0.00035616,9]
[388057656,1758995444979,-480.0,0.00035616,9]
[388057657,1758995444988,-480.0,0.00035616,9]
[388057658,1758995444997,-480.0,0.00035616,9]
[388057659,1758995445007,-480.0,0.00035616,9]
[388057660,1758995445016,-480.0,0.00035616,9]
[388057661,1758995445026,-480.0,0.00035616,9]
[388057662,1758995445036,-712.71,0.00035616,9]
[388057663,1758995445046,-480.0,0.00035616,9]
[388057664,1758995445055,-480.0,0.00035616,9]
[388057665,1758995445065,-480.0,0.00035616,9]
[388057666,1758995445074,-1572.9,0.00035616,9]
[388057667,1758995445084,-480.0,0.00035616,9]
[388057668,1758995445093,-987.42,0.00035616,9]
[388057669,1758995445103,-480.0,0.00035616,9]
[388057670,1758995445112,-480.0,0.00035616,9]
[388057671,1758995445122,-3727.05,0.00035616,9]
[388057672,1758995445137,-480.0,0.00035616,9]
[388057673,1758995445154,-646.15,0.00035616,9]
[388057674,1758995445164,-480.0,0.00035616,9]
[388057675,1758995445173,-480.0,0.00035616,9]
[388057676,1758995445184,-480.0,0.00035616,9]
[388057677,1758995445193,-2237.01,0.00035616,9]
[388057678,1758995445203,-1013.34,0.00035616,9]
[388057679,1758995445214,-480.0,0.00035616,9]
[388057680,1758995445223,-1236.83,0.00035616,9]
[388057681,1758995445233,-596.82,0.00035616,9]
[388057682,1758995445243,-609.14,0.00035616,9]
[388057683,1758995445252,-480.0,0.00035616,9]
[388057684,1758995445262,-1795.29,0.00035616,9]
[388057685,1758995445272,-1304.86,0.00035616,9]
[388057686,1758995445286,-480.0,0.00035616,9]
[388057687,1758995445296,-480.0,0.00035616,9]
[388057688,1758995445306,-480.0,0.00035616,9]
[388057689,1758995445317,-623.21,0.00035616,9]
[388057690,1758995445327,-480.0,0.00035616,9]
[388057691,1758995445336,-781.75,0.00035616,9]
[388057692,1758995445346,-480.0,0.00035616,9]
[388057693,1758995445359,-480.0,0.00035616,9]
[388057694,1758995445369,-1000.0,0.00035616,9]
[388057695,1758995445378,-480.0,0.00035616,9]
[388057696,1758995445388,-480.0,0.00035616,9]
[388057697,1758995445398,-480.0,0.00035616,9]
[388057698,1758995445407,-480.0,0.00035616,9]
[388057699,1758995445417,-1738.41,0.00035616,9]
[388057700,1758995445427,-1064.05,0.00035616,9]
[388057701,1758995445438,-2943.74,0.00035616,9]
[388057702,1758995445447,-941.42,0.00035616,9]
[388057703,1758995445457,-687.68,0.00035616,9]
[388057704,1758995445467,-616.19,0.00035616,9]
[388057705,1758995445477,-722.0,0.00035616,9]
[388057706,1758995445487,-480.0,0.00035616,9]
[388057707,1758995445497,-1470.11,0.00035616,9]
[388057708,1758995445508,-493.02,0.00035616,9]
[388057709,1758995445519,-480.0,0.00035616,9]
[388057710,1758995445530,-944.88,0.00035616,9]
[388057711,1758995445540,-8692.66,0.00035616,9]
[388057712,1758995445552,-708.79,0.00035616,9]
[388057713,1758995445562,-728.27,0.00035616,9]
[388057714,1758995445573,-480.0,0.00035616,9]
[388057715,1758995445584,-2288.99,0.00035616,9]
[388057716,1758995445594,-480.0,0.00035616,9]
[388057717,1758995445604,-2437.07,0.00035616,9]
[388057718,1758995445614,-480.0,0.00035616,9]
[388057719,1758995445624,-2323.77,0.00035616,9]
[388057720,1758995445634,-1376.98,0.00035616,9]
[388057721,1758995445644,-721.29,0.00035616,9]
[388057722,1758995445653,-2414.29,0.00035616,9]
[388057723,1758995445663,-1098.64,0.00035616,9]
[388057724,1758995445673,-480.0,0.00035616,9]
[388057726,1758995445683,-480.0,0.00035616,9]
[388057727,1758995445693,-611.04,0.00035616,9]
[388057728,1758995445702,-587.4,0.00035616,9]
[388057729,1758995445712,-1069.91932204,0.00035616,9]
[388057737,1758995446228,-150.0,0.00033287,2]
[388057738,1758995446238,-993.73878951,0.00035616,9]
[388057742,1758995446287,-3763.14188845,0.00035616,9]
[388057744,1758995446297,-1584.55,0.00035616,9]
[388057746,1758995446307,-3832.74,0.00035616,9]
[388057748,1758995446317,-480.0,0.00035616,9]
[388057749,1758995446326,-480.0,0.00035616,9]
[388057750,1758995446336,-4682.95,0.00035616,9]
[388057751,1758995446346,-2621.6,0.00035616,9]
[388057752,1758995446357,-728.16,0.00035616,9]
[388057753,1758995446367,-1599.43,0.00035616,9]
[388057754,1758995446377,-480.0,0.00035616,9]
[388057755,1758995446387,-1311.12,0.00035616,9]
[388057756,1758995446397,-480.0,0.00035616,9]
[388057757,1758995446407,-550.83,0.00035616,9]
[388057758,1758995446417,-480.0,0.00035616,9]
[388057759,1758995446427,-162.86902007,0.00035616,9]
[388057760,1758995446436,-3002.88,0.00035616,9]
[388057761,1758995446446,-604.41,0.00035616,9]
[388057762,1758995446456,-1678.73,0.00035616,9]
[388057763,1758995446466,-480.0,0.00035616,9]
[388057764,1758995446476,-1194.69,0.00035616,9]
[388057766,1758995446486,-966.14,0.00035616,9]
[388057767,1758995446495,-480.0,0.00035616,9]
[388057768,1758995446505,-716.9,0.00035616,9]
[388057769,1758995446514,-480.0,0.00035616,9]
[388057770,1758995446524,-480.0,0.00035616,9]
[388057771,1758995446533,-646.5,0.00035616,9]
[388057772,1758995446543,-481.31132786,0.00035616,9]
[388057773,1758995446553,-500.0,0.00035616,9]
[388057774,1758995446563,-500.0,0.00035616,9]
[388057775,1758995446572,-500.0,0.00035616,9]
[388057776,1758995446581,-500.0,0.00035616,9]
[388057777,1758995446591,-500.0,0.00035616,9]
[388057778,1758995446601,-500.0,0.00035616,9]
[388057779,1758995446611,-2363.74,0.00035616,9]
[388057780,1758995446621,-500.0,0.00035616,9]
[388057781,1758995446631,-500.0,0.00035616,9]
[388057782,1758995446640,-500.0,0.00035616,9]
[388057783,1758995446650,-500.0,0.00035616,9]
[388057784,1758995446660,-500.0,0.00035616,9]
[388057785,1758995446670,-480.0,0.00035616,9]
[388057786,1758995446679,-876.36,0.00035616,9]
[388057787,1758995446689,-500.0,0.00035616,9]
[388057788,1758995446699,-500.0,0.00035616,9]
[388057789,1758995446709,-500.0,0.00035616,9]
[388057790,1758995446720,-500.0,0.00035616,9]
[388057791,1758995446730,-500.0,0.00035616,9]
[388057792,1758995446958,-500.0,0.00035616,9]
[388057793,1758995446968,-500.0,0.00035616,9]
[388057794,1758995446979,-500.0,0.00035616,9]
[388057795,1758995446988,-500.0,0.00035616,9]
[388057796,1758995446998,-500.0,0.00035616,9]
[388057797,1758995447008,-172.23624331,0.00035616,9]
[388057798,1758995447017,-447.54485781,0.00035616,9]
[388057799,1758995447029,-32.45514219,0.00035616,9]
[388057800,1758995447038,-1953.46,0.00035616,9]
[388057801,1758995447048,-422.49388315,0.00035616,9]
[388057802,1758995447059,-57.50611685,0.00035616,9]
[388057803,1758995447069,-422.49388315,0.00035616,9]
[388057817,1758996544259,153.0,0.000245,2]
[388057818,1758996561143,-1248.94890972,0.00025204,2]
[388057819,1758996561164,-500.0,0.00025205,2]
[388057820,1758996561184,-500.0,0.00025205,2]
[388057821,1758996561204,-188.807463,0.00028397,60]
[388057849,1758996632374,-605.57180953,0.00029145,2]
[388057851,1758996632385,-1418.21819857,0.00029145,2]
[388057853,1758996632396,-1000.0,0.0002988,30]
[388057855,1758996632406,-641.30728236,0.0003012,120]
[388057857,1758996632415,-522.8878328,0.00031242,2]
[388057859,1758996632425,-204.60032971,0.00031242,2]
[388057861,1758996632434,-400.0,0.00031435,2]
[388057863,1758996632443,-2196.161089,0.00031436,2]
[388057865,1758996632452,-271.5372948,0.00031536,2]
[388057867,1758996632461,-164.617716,0.00032164,13]
[388057869,1758996632470,-1180.67025676,0.00032645,2]
[388057871,1758996632486,-1015.49083219,0.00032645,2]
[388057873,1758996632495,-162.921,0.00032775,33]
[388057875,1758996632504,-16715.61816781,0.00032775,2]
[388057879,1758996632515,-33284.38183219,0.00032775,2]
[388057882,1758996632525,-3000.0,0.000328,13]
[388057884,1758996632534,-3000.0,0.0003281,13]
[388057886,1758996632543,-3000.0,0.0003282,13]
[388057889,1758996632552,-3000.0,0.0003283,13]
[388057891,1758996632561,-3000.0,0.0003284,13]
[388057893,1758996632570,-3000.0,0.0003285,13]
[388057895,1758996632579,-3000.0,0.0003286,13]
[388057897,1758996632588,-3000.0,0.0003287,13]
[388057899,1758996632599,-354.20033,0.00032877,2]
[388057901,1758996632609,-3000.0,0.0003288,13]
[388057903,1758996632619,-3000.0,0.0003289,13]
[388057906,1758996632631,-7893.08247414,0.0003289,2]
[388057907,1758996632641,-3000.0,0.000329,13]
[388057909,1758996632651,-410.0,0.00032908,2]
[388057911,1758996632659,-3000.0,0.0003291,13]
[388057913,1758996632669,-315.62398436,0.00032919,7]